bitfinex/quotes_ETHUSD_20220119
["timestamp","ask_amount","ask_price","bid_price","bid_amount"]
[1642631706798,0.00113685,3127.0,3126.9,0.1279]
[1642631707397,0.00113685,3127.0,3126.7,1.4868327]
[1642631708208,0.00113685,3127.0,3126.7,3.95393237]
[1642631708397,0.00113685,3127.0,3126.8,0.3]
[1642631708599,0.00113685,3127.0,3126.9,2.49160012]
[1642631709300,0.00113685,3127.0,3126.7,3.96799877]
[1642631709502,0.00113685,3127.0,3126.8,0.3]
[1642631709947,0.00113685,3127.0,3126.9,2.62707414]
[1642631710151,0.00113685,3127.0,3126.9,3.77845681]
[1642631710355,0.00113685,3127.0,3126.9,3.74601334]
[1642631710551,0.00113685,3127.0,3126.9,3.7773356]
[1642631710752,0.00113685,3127.0,3126.9,3.74601334]
[1642631712260,0.00113685,3127.0,3126.9,3.87391334]
[1642631715709,0.00113685,3127.0,3126.9,4.17391334]
[1642631722545,2.71983777,3128.0,3127.0,0.35]
[1642631722748,2.71983777,3128.0,3126.9,5.21309808]
[1642631722749,2.71983777,3127.9,3127.2,1.59828]
[1642631723045,2.71983777,3127.8,3127.3,3.14617551]
[1642631723450,2.71983777,3127.8,3127.3,2.84617551]
[1642631723451,0.00397896,3127.7,3127.3,2.84617551]
[1642631723643,0.00397896,3127.7,3127.3,2.71837551]
[1642631723843,0.00341054,3127.6,3127.3,0.3]
[1642631724045,0.00341054,3127.6,3127.5,0.16013]
[1642631724244,2.71959841,3128.3,3127.5,0.16013]
[1642631724642,0.00682108,3128.2,3127.5,0.16013]
[1642631725047,2.72585107,3128.1,3127.5,0.9593]
[1642631725244,2.71959841,3128.0,3127.5,0.9593]
[1642631725447,2.72528264,3128.0,3127.5,0.79917]
[1642631725644,2.72471422,3127.9,3127.5,0.79917]
[1642631725843,2.72471422,3127.9,3127.5,1.09917]
[1642631725844,2.71959841,3127.8,3127.5,1.09917]
[1642631726050,2.7241458,3127.8,3127.5,1.29507]
[1642631726249,2.72357737,3127.7,3127.5,1.29507]
[1642631726448,0.00397896,3127.7,3127.5,1.29507]
[1642631726649,0.00341054,3127.6,3127.5,1.29507]
[1642631726952,0.00341054,3127.6,3127.5,1.4552]
[1642631728393,0.00341054,3127.6,3127.5,1.583]
[1642631728795,3.9697,3128.4,3127.6,1.14908]
[1642631728996,4.5103,3128.6,3127.8,0.79909]
[1642631729196,0.00397896,3128.3,3127.8,0.79909]
[1642631729399,0.00397896,3128.3,3127.8,3.53145908]
[1642631729596,0.00341054,3128.2,3127.8,3.53145908]
[1642631730007,0.00284212,3128.1,3127.8,3.53145908]
[1642631730405,2.71908259,3128.5,3127.8,3.69130908]
[1642631730406,0.00227369,3128.0,3127.8,3.69130908]
[1642631730602,0.00227369,3128.0,3127.9,2.3847099]
[1642631730802,2.71908259,3128.5,3127.9,2.5125099]
[1642631731005,2.71908259,3128.5,3127.9,2.49775978]
[1642631731207,0.00454739,3128.4,3127.9,2.49775978]
[1642631731403,0.00454739,3128.4,3127.9,2.79775978]
[1642631731609,0.00397896,3128.3,3127.9,2.79775978]
[1642631731803,0.00397896,3128.3,3127.9,0.4278]
[1642631732004,0.00341054,3128.2,3127.9,2.82611738]
[1642631732251,0.00341054,3128.2,3127.9,0.4278]
[1642631732450,0.00284212,3128.1,3128.0,2.39521883]
[1642631732652,0.00284212,3128.1,3128.0,2.68285883]
[1642631732851,0.00284212,3128.1,3128.0,2.98285883]
[1642631734049,0.00284212,3128.1,3128.0,2.85505883]
[1642631735249,0.00284212,3128.1,3128.0,2.55505883]
[1642631735450,0.00284212,3128.1,3128.0,2.85505883]
[1642631736096,0.00284212,3128.1,3128.0,2.55505883]
[1642631736295,0.00284212,3128.1,3127.9,3.208926]
[1642631736500,0.00284212,3128.1,3127.9,3.20254165]
[1642631736795,0.00227369,3128.0,3127.9,3.84340497]
[1642631736996,0.00227369,3128.0,3127.9,1.68662]
[1642631737195,0.00227369,3128.0,3127.9,4.08990965]
[1642631737395,0.00227369,3128.0,3127.9,1.68662]
[1642631737596,0.00227369,3128.0,3127.9,0.58764]
[1642631737997,0.00227369,3128.0,3127.9,0.28764]
[1642631739105,0.00227369,3128.0,3127.9,0.15984]
[1642631739860,0.00227369,3128.0,3127.9,2.83709929]
[1642631740260,0.00227369,3128.0,3127.9,2.72949855]
[1642631741669,0.00227369,3128.0,3127.9,0.28764]
[1642631742265,0.00227369,3128.0,3127.9,1.30468568]
[1642631742666,0.00227369,3128.0,3127.9,2.20978568]
[1642631742867,0.00227369,3128.0,3127.9,0.9051]
[1642631744315,0.00227369,3128.0,3127.8,0.82909]
[1642631744710,0.00170527,3127.9,3127.8,0.82909]
[1642631746214,0.00170527,3127.9,3127.8,0.95689]
[1642631746615,0.00170527,3127.9,3127.8,0.03]
[1642631748055,0.00170527,3127.9,3127.6,0.61764]
[1642631748455,0.00113685,3127.8,3127.6,0.61764]
[1642631748856,0.00113685,3127.8,3127.7,0.15984]
[1642631749255,0.00113685,3127.8,3127.6,0.03]
[1642631750909,0.00113685,3127.8,3127.5,4.03337]
[1642631751105,0.00113685,3127.8,3127.7,0.50984]
[1642631751706,0.00113685,3127.8,3127.7,0.35]
[1642631752510,0.00113685,3127.8,3127.7,0.50984]
[1642631752709,0.00113685,3127.8,3127.7,0.85984]
[1642631752710,0.00033685,3127.8,3127.7,0.85984]
[1642631752912,0.00033685,3127.8,3127.7,0.98224]
[1642631753108,0.00033685,3127.8,3127.7,0.98144]
[1642631753309,0.00033685,3127.8,3127.7,0.98224]
[1642631753511,0.00033685,3127.8,3127.7,0.98144]
[1642631753709,0.00033685,3127.8,3127.7,0.98384]
[1642631753908,0.00033685,3127.8,3127.7,0.85984]
[1642631754110,0.00033685,3127.8,3127.7,0.98384]
[1642631754309,0.00033685,3127.8,3127.7,0.98304]
[1642631754510,0.00033685,3127.8,3127.7,0.98064]
[1642631754758,0.00033685,3127.8,3127.7,0.98544]
[1642631754954,0.00033685,3127.8,3127.7,1.33384]
[1642631755152,0.00033685,3127.8,3127.7,1.33144]
[1642631755354,0.00033685,3127.8,3127.7,1.20984]
[1642631755554,0.00033685,3127.8,3127.7,1.33304]
[1642631755753,0.00033685,3127.8,3127.7,1.33384]
[1642631755960,0.00033685,3127.8,3127.7,1.68464]
[1642631756359,0.00033685,3127.8,3127.7,1.55984]
[1642631756560,0.00033685,3127.8,3127.7,1.68304]
[1642631756759,0.00033685,3127.8,3127.7,1.68464]
[1642631756959,0.00033685,3127.8,3127.7,1.68624]
[1642631757363,0.00033685,3127.8,3127.7,1.68304]
[1642631757563,0.00033685,3127.8,3127.7,1.68464]
[1642631757760,0.00033685,3127.8,3127.7,1.68064]
[1642631757960,0.00033685,3127.8,3127.7,1.68784]
[1642631758262,0.00033685,3127.8,3127.7,2.68944]
[1642631758507,0.00033685,3127.8,3127.7,1.68544]
[1642631758705,0.00033685,3127.8,3127.7,1.68224]
[1642631758904,0.00033685,3127.8,3127.7,1.68304]
[1642631759107,0.00033685,3127.8,3127.7,1.68384]
[1642631759304,0.00033685,3127.8,3127.7,1.68624]
[1642631759507,0.00033685,3127.8,3127.7,1.68944]
[1642631759705,0.00033685,3127.8,3127.7,1.68784]
[1642631759910,3.9565952,3128.9,3128.1,0.79895]
[1642631760106,4.2565952,3128.9,3128.1,0.79895]
[1642631760306,0.00568423,3128.8,3128.1,0.79895]
[1642631760808,0.00511581,3128.7,3128.1,0.79895]
[1642631761207,0.00454739,3128.6,3128.1,0.79895]
[1642631761606,0.00397896,3128.5,3128.1,0.79895]
[1642631762006,0.00341054,3128.4,3128.1,0.79895]
[1642631762460,0.00284211,3128.3,3128.1,0.79895]
[1642631762856,0.00227369,3128.2,3128.1,0.79895]
[1642631763657,0.00227369,3128.2,3128.1,3.40966733]
[1642631764057,0.00227369,3128.2,3128.1,3.56950733]
[1642631764257,0.00227369,3128.2,3128.1,3.40966733]
[1642631764857,0.00227369,3128.2,3128.1,3.56950733]
[1642631766917,0.00227369,3128.2,3128.1,0.95879]
[1642631767118,0.00227369,3128.2,3128.1,0.79895]
[1642631767317,0.00227369,3128.2,3128.1,3.23867154]
[1642631767722,0.00227369,3128.2,3128.1,2.40540534]
[1642631767918,0.00227369,3128.2,3128.1,2.48972044]
[1642631768125,0.00227369,3128.2,3128.1,3.28865044]
[1642631768318,0.00227369,3128.2,3128.1,0.79893]
[1642631768519,0.00227369,3128.2,3128.1,0.95877]
[1642631768920,0.00227369,3128.2,3128.1,2.3579525]
[1642631769118,0.00227369,3128.2,3128.1,0.95877]
[1642631769318,4.2565952,3128.9,3128.1,0.95877]
[1642631769518,4.2565952,3128.9,3128.2,0.1278]
[1642631769760,0.00341054,3128.8,3128.2,0.1278]
[1642631770158,0.00284212,3128.7,3128.2,0.1278]
[1642631770365,0.00284212,3128.7,3128.1,1.08657]
[1642631770557,4.2565952,3128.9,3128.1,1.08657]
[1642631770558,0.0022737,3128.6,3128.1,1.08657]
[1642631770962,0.00170527,3128.5,3128.1,1.08657]
[1642631771363,0.00113685,3128.4,3128.1,1.08657]
[1642631775111,0.00113685,3128.4,3128.1,0.95877]
[1642631776119,0.00113685,3128.4,3128.1,0.79893]
[1642631778167,0.00113685,3128.4,3128.1,0.92673]
[1642631780671,0.00113685,3128.4,3128.3,0.15984]
[1642631781915,0.00113685,3128.4,3128.1,2.08657]
[1642631784519,0.00113685,3128.4,3128.1,2.88554]
[1642631784756,0.00113685,3128.4,3128.1,2.7257]
[1642631784957,0.00113685,3128.4,3128.1,0.92677]
[1642631785261,0.00113685,3128.4,3128.0,1.5979]
[1642631786160,0.00113685,3128.4,3128.0,1.7187]
[1642631786360,0.00113685,3128.4,3128.1,0.79895]
[1642631786562,0.00113685,3128.4,3128.2,0.79893]
[1642631788919,0.00113685,3128.4,3128.0,1.5979]
[1642631791121,0.00113685,3128.4,3128.1,0.15984]
[1642631792966,0.00113685,3128.4,3128.2,0.79894]
[1642631793165,0.00113685,3128.4,3128.2,0.92674]
[1642631793364,0.00113685,3128.4,3128.3,0.15984]
[1642631793565,0.00113685,3128.4,3128.2,0.92674]
[1642631793870,0.00113685,3128.4,3128.2,0.79894]
[1642631794065,0.00113685,3128.4,3128.3,0.1278]
[1642631794265,0.00113685,3128.4,3128.2,0.79894]
[1642631796722,0.00113685,3128.4,3128.1,0.1278]
[1642631796921,0.00113685,3128.4,3128.3,0.79894]
[1642631797820,0.00113685,3128.4,3128.1,1.82597713]
[1642631799221,0.00113685,3128.4,3128.3,0.15984]
[1642631800265,0.00113685,3128.4,3128.1,1.82597713]
[1642631802472,0.00113685,3128.4,3128.1,0.28764]
[1642631802672,0.00113685,3128.4,3128.1,0.15984]
[1642631805212,0.00113685,3128.4,3128.0,3.13623713]
[1642631806416,0.00113685,3128.4,3128.0,1.53833713]
[1642631807482,0.13593657,3128.3,3128.0,1.53833713]
[1642631807682,0.13593657,3128.3,3127.9,1.56833713]
[1642631807883,0.13593657,3128.3,3127.9,1.53833713]
[1642631808082,0.13593657,3128.3,3128.0,0.00113685]
[1642631808484,0.03593657,3128.3,3128.0,0.00113685]
[1642631809289,0.03593657,3128.3,3128.0,1.53947398]
[1642631812232,0.03593657,3128.3,3128.0,0.00113685]
[1642631812633,0.4115952,3128.9,3128.0,0.00113685]
[1642631812833,2.71868576,3128.8,3128.0,1.53947398]
[1642631813034,2.7220963,3128.8,3128.0,1.53947398]
[1642631815166,2.7220963,3128.8,3128.0,1.66727398]
[1642631817570,3.0220963,3128.8,3128.0,1.66727398]
[1642631817771,2.71868576,3128.7,3128.0,0.12893685]
[1642631817974,3.01868576,3128.7,3128.0,0.12893685]
[1642631818173,2.72095946,3128.6,3128.0,0.12893685]
[1642631818432,2.72095946,3128.6,3128.0,1.66727398]
[1642631818616,0.00170527,3128.5,3128.0,0.12893685]
[1642631819120,0.00113685,3128.4,3128.0,0.12893685]
[1642631819520,0.00170527,3128.5,3128.0,0.12893685]
[1642631819919,0.00113685,3128.4,3128.0,0.12893685]
[1642631820320,0.00170527,3128.5,3128.0,0.12893685]
[1642631820720,0.00113685,3128.4,3128.0,0.12893685]
[1642631821122,0.00170527,3128.5,3128.0,0.12893685]
[1642631821526,0.00113685,3128.4,3128.0,0.12893685]
[1642631821925,0.00170527,3128.5,3128.0,0.12893685]
[1642631822368,2.71868576,3128.6,3128.0,0.12893685]
[1642631822369,0.00113685,3128.4,3128.0,2.54993712]
[1642631822565,0.00113685,3128.4,3128.0,0.12893685]
[1642631822765,0.00170527,3128.5,3128.0,0.12893685]
[1642631823166,0.00113685,3128.4,3128.0,0.12893685]
[1642631823567,0.00170527,3128.5,3128.0,1.66727398]
[1642631823967,0.00113685,3128.4,3128.0,1.66727398]
[1642631824167,0.00113685,3128.4,3128.0,0.12893685]
[1642631824369,0.00170527,3128.5,3128.0,0.12893685]
[1642631824567,0.00170527,3128.5,3128.0,2.55621785]
[1642631824767,0.00113685,3128.4,3128.0,0.12893685]
[1642631825267,0.00170527,3128.5,3128.0,0.12893685]
[1642631825467,0.00170527,3128.5,3128.0,0.00113685]
[1642631825670,2.71868576,3128.6,3128.0,0.00113685]
[1642631825671,0.00113685,3128.4,3128.0,0.00113685]
[1642631826118,0.00170527,3128.5,3128.0,0.00113685]
[1642631826321,0.00170527,3128.5,3128.0,2.43858598]
[1642631826520,0.3,3128.7,3128.0,3.97692311]
[1642631826521,0.00113685,3128.4,3128.0,3.97692311]
[1642631826923,2.72086687,3128.6,3128.0,3.97692311]
[1642631827122,0.0022737,3128.6,3128.0,1.53947398]
[1642631827321,0.00170527,3128.5,3128.0,3.99842027]
[1642631827721,0.00113685,3128.4,3128.0,2.46008314]
[1642631827922,0.00113685,3128.4,3128.0,0.00113685]
[1642631828121,0.00113685,3128.4,3128.0,3.96239066]
[1642631828923,0.14545949,3128.3,3128.1,2.44122495]
[1642631829523,0.14545949,3128.3,3128.0,1.53947398]
[1642631829764,0.14545949,3128.3,3128.1,0.1278]
[1642631829964,0.14545949,3128.3,3128.0,1.66727398]
[1642631830564,0.14545949,3128.3,3128.1,2.44945136]
[1642631830768,0.14545949,3128.3,3128.0,1.66727398]
[1642631831171,0.14545949,3128.3,3128.0,4.09578372]
[1642631831572,0.14545949,3128.3,3128.0,1.66727398]
[1642631832878,0.14545949,3128.3,3128.1,4.01094332]
[1642631833070,0.14545949,3128.3,3128.1,2.47260619]
[1642631833519,0.14545949,3128.3,3128.1,4.01094332]
[1642631834116,0.14545949,3128.3,3128.0,1.69727398]
[1642631834719,0.14545949,3128.3,3128.1,2.42693235]
[1642631835319,0.14545949,3128.3,3128.1,1.53833713]
[1642631835523,0.14545949,3128.3,3128.0,1.69727398]
[1642631835918,0.14545949,3128.3,3128.1,2.41984783]
[1642631836123,0.14545949,3128.3,3128.0,1.69727398]
[1642631836323,0.14545949,3128.3,3128.1,2.42038169]
[1642631836723,0.14545949,3128.3,3128.0,1.69727398]
[1642631837973,0.14545949,3128.3,3128.0,1.69613713]
[1642631838773,0.14545949,3128.3,3128.1,3.97040358]
[1642631838971,0.14545949,3128.3,3128.1,2.43206645]
[1642631839177,0.14545949,3128.3,3128.0,1.56833713]
[1642631839377,0.14545949,3128.3,3128.1,2.41857276]
[1642631839778,0.14545949,3128.3,3128.2,1.53833713]
[1642631839977,0.14545949,3128.3,3128.1,3.95690989]
[1642631840179,0.14545949,3128.3,3128.2,2.44107004]
[1642631840379,0.14545949,3128.3,3128.1,1.53833713]
[1642631843337,0.14545949,3128.3,3128.2,1.53833713]
[1642631843725,0.14545949,3128.3,3128.1,1.53833713]
[1642631844127,0.14545949,3128.3,3128.2,1.53833713]
[1642631844526,0.14545949,3128.3,3128.1,1.53833713]
[1642631845478,0.14545949,3128.3,3128.2,0.79894]
[1642631845678,0.14545949,3128.3,3128.2,2.33727713]
[1642631848616,0.14545949,3128.3,3128.2,2.3266754]
[1642631848617,0.08792218,3128.3,3128.2,2.3266754]
[1642631849421,0.08792218,3128.3,3128.2,0.79894]
[1642631849821,0.08792218,3128.3,3128.2,3.22708994]
[1642631850022,0.08792218,3128.3,3128.2,4.75415661]
[1642631850625,0.08792218,3128.3,3128.2,3.22708994]
[1642631851026,0.08792218,3128.3,3128.2,4.75359854]
[1642631851623,0.08792218,3128.3,3128.2,4.75303492]
[1642631852476,0.08792218,3128.3,3128.2,2.32488498]
[1642631852877,0.05792218,3128.3,3128.2,2.32488498]
[1642631854678,0.05792218,3128.3,3128.2,2.32309005]
[1642631854880,0.05792218,3128.3,3128.2,3.31212241]
[1642631857130,0.05792218,3128.3,3128.2,4.83627246]
[1642631858330,0.05792218,3128.3,3128.2,3.31212241]
[1642631858529,0.05792218,3128.3,3128.2,4.83627246]
[1642631858932,0.05792218,3128.3,3128.2,3.31212241]
[1642631859128,0.1115952,3128.9,3128.2,4.83417846]
[1642631859327,0.4115952,3128.9,3128.2,4.83417846]
[1642631860375,0.4115952,3128.9,3128.3,1.52205605]
[1642631860983,0.4115952,3128.9,3128.2,4.83417846]
[1642631861982,0.4115952,3128.9,3128.3,1.52205605]
[1642631862183,0.4115952,3128.9,3128.2,4.83417846]
[1642631863185,0.4115952,3128.9,3128.3,1.52205605]
[1642631863431,0.4115952,3128.9,3128.2,4.83417846]
[1642631864242,0.4115952,3128.9,3128.3,1.52205605]
[1642631864425,0.4115952,3128.9,3128.2,4.83417846]
[1642631865628,0.4115952,3128.9,3128.2,2.32099605]
[1642631865830,0.4115952,3128.9,3128.3,1.52205605]
[1642631866034,0.4115952,3128.9,3128.3,3.93853183]
[1642631866634,0.4115952,3128.9,3128.3,2.42120754]
[1642631866838,0.4115952,3128.9,3128.3,3.94326359]
[1642631867272,0.4115952,3128.9,3128.2,2.32099605]
[1642631867472,0.4115952,3128.9,3128.3,2.41022431]
[1642631867772,0.4115952,3128.9,3128.2,2.32099605]
[1642631869876,0.4115952,3128.9,3128.2,2.44879605]
[1642631870276,0.4115952,3128.9,3128.2,2.32099605]
[1642631871128,0.4115952,3128.9,3128.3,1.52205605]
[1642631871727,0.4115952,3128.9,3128.3,3.95033824]
[1642631871930,0.4115952,3128.9,3128.3,4.00446761]
[1642631874228,0.22175336,3128.8,3128.3,4.00446761]
[1642631874672,0.00284212,3128.7,3128.3,4.00446761]
[1642631874877,0.00284212,3128.7,3128.3,3.9387373]
[1642631875076,0.0022737,3128.6,3128.3,3.9387373]
[1642631875276,0.0022737,3128.6,3128.3,4.0665373]
[1642631875478,0.22345863,3128.5,3128.3,4.0665373]
[1642631875877,0.00113685,3128.4,3128.3,1.64985605]
[1642631876080,0.00033685,3128.4,3128.3,1.52205605]
[1642631877682,0.00033685,3128.4,3128.2,0.92674]
[1642631877886,0.00033685,3128.4,3128.2,2.44516418]
[1642631878084,0.00033685,3128.4,3128.2,2.31736418]
[1642631878527,0.00033685,3128.4,3128.3,1.51842418]
[1642631878926,0.00033685,3128.4,3128.2,2.31736418]
[1642631880131,0.00033685,3128.4,3128.2,0.79894]
[1642631880329,0.00033685,3128.4,3128.3,1.51755891]
[1642631883487,0.00033685,3128.4,3128.2,0.79894]
[1642631883890,0.00033685,3128.4,3128.3,2.46634375]
[1642631884292,0.00033685,3128.4,3128.3,2.58634375]
[1642631884489,0.00033685,3128.4,3128.3,2.58714375]
[1642631884690,0.00033685,3128.4,3128.3,2.58634375]
[1642631884888,0.00033685,3128.4,3128.3,2.58794375]
[1642631885090,0.00033685,3128.4,3128.3,2.58634375]
[1642631885292,0.00033685,3128.4,3128.3,2.58714375]
[1642631885489,0.00033685,3128.4,3128.3,2.58794375]
[1642631885689,0.00033685,3128.4,3128.3,2.58874375]
[1642631885936,0.00033685,3128.4,3128.3,2.58794375]
[1642631886325,0.00033685,3128.4,3128.3,2.58714375]
[1642631886526,0.00033685,3128.4,3128.3,2.58794375]
[1642631886826,0.00033685,3128.4,3128.3,2.58714375]
[1642631888227,0.00033685,3128.4,3128.3,2.53714375]
[1642631888627,0.00033685,3128.4,3128.3,2.53794375]
[1642631889028,0.00033685,3128.4,3128.3,2.53634375]
[1642631889427,0.00033685,3128.4,3128.3,2.53794375]
[1642631889682,0.00033685,3128.4,3128.3,0.1224]
[1642631889877,0.00033685,3128.4,3128.3,2.5119459]
[1642631890176,0.00033685,3128.4,3128.3,2.5127459]
[1642631890382,0.00033685,3128.4,3128.3,4.8186516]
[1642631890677,0.00033685,3128.4,3128.3,2.5135459]
[1642631890884,0.00033685,3128.4,3128.3,0.1216]
[1642631891081,0.22175336,3128.8,3128.4,0.00046315]
[1642631891483,0.00170527,3128.7,3128.4,0.00046315]
[1642631891882,0.00113685,3128.6,3128.4,0.00046315]
[1642631893443,0.22179554,3128.5,3128.4,0.35046315]
[1642631898579,0.22057554,3128.5,3128.4,0.35046315]
[1642631900486,0.22057554,3128.5,3128.4,1.86905092]
[1642631901141,0.22057554,3128.5,3128.4,0.35046315]
[1642631902139,0.22057554,3128.5,3128.4,0.70046315]
[1642631902740,0.22057554,3128.5,3128.4,2.21905092]
[1642631903842,0.22057554,3128.5,3128.4,0.70046315]
[1642631905983,0.22057554,3128.5,3128.4,2.21905092]
[1642631906387,0.22057554,3128.5,3128.4,0.70046315]
[1642631909134,0.22057554,3128.5,3128.4,1.05046315]
[1642631909541,0.22057554,3128.5,3128.4,3.58586587]
[1642631909740,0.22057554,3128.5,3128.4,1.17526315]
[1642631909939,0.22057554,3128.5,3128.4,1.17606315]
[1642631910140,0.22057554,3128.5,3128.4,1.17286315]
[1642631910342,0.22057554,3128.5,3128.4,1.17526315]
[1642631910544,0.22057554,3128.5,3128.4,1.17606315]
[1642631910743,0.22057554,3128.5,3128.4,1.17526315]
[1642631910948,0.22057554,3128.5,3128.4,1.17446315]
[1642631911143,0.22057554,3128.5,3128.4,1.17206315]
[1642631911344,0.22057554,3128.5,3128.4,1.17366315]
[1642631911644,0.22057554,3128.5,3128.4,2.69225092]
[1642631911942,0.22057554,3128.5,3128.4,2.56905092]
[1642631912177,0.22057554,3128.5,3128.4,1.17526315]
[1642631912379,0.13358436,3128.5,3128.4,2.56810839]
[1642631912781,0.13358436,3128.5,3128.4,1.16966315]
[1642631912980,0.13358436,3128.5,3128.4,1.05046315]
[1642631913181,0.13358436,3128.5,3128.4,1.16966315]
[1642631913379,0.13358436,3128.5,3128.4,1.05046315]
[1642631914583,0.13358436,3128.5,3128.4,1.17046315]
[1642631914780,0.13358436,3128.5,3128.4,1.05046315]
[1642631915783,0.13358436,3128.5,3128.4,1.16966315]
[1642631916041,0.13358436,3128.5,3128.4,1.05046315]
[1642631916638,0.13358436,3128.5,3128.4,1.17286315]
[1642631916839,0.13358436,3128.5,3128.4,1.17126315]
[1642631917041,0.13358436,3128.5,3128.4,1.05046315]
[1642631917841,0.13358436,3128.5,3128.4,1.17126315]
[1642631918041,0.13358436,3128.5,3128.4,1.05046315]
[1642631920381,0.13358436,3128.5,3128.4,1.17046315]
[1642631920582,0.13358436,3128.5,3128.4,1.05046315]
[1642631921391,0.13358436,3128.5,3128.4,1.17046315]
[1642631921587,0.13358436,3128.5,3128.4,1.05046315]
[1642631923191,0.13358436,3128.5,3128.4,1.16966315]
[1642631923452,0.7115952,3128.9,3128.4,1.05046315]
[1642631923643,2.71863203,3128.8,3128.5,7.498]
[1642631923844,2.72090572,3128.8,3128.5,7.498]
[1642631928381,2.72090572,3128.8,3128.5,7.6188]
[1642631928584,2.72090572,3128.8,3128.5,7.498]
[1642631929587,2.72090572,3128.8,3128.5,7.622]
[1642631929786,2.72090572,3128.8,3128.5,7.498]
[1642631930785,2.72090572,3128.8,3128.5,7.6258]
[1642631932250,0.00227369,3128.8,3128.5,8.4247]
[1642631932448,0.00227369,3128.8,3128.5,8.5471]
[1642631932650,0.00227369,3128.8,3128.5,8.4247]
[1642631933449,0.20858994,3128.7,3128.5,8.4247]
[1642631933652,0.20858994,3128.7,3128.5,8.5487]
[1642631933852,0.20858994,3128.7,3128.5,8.5495]
[1642631933853,0.00113685,3128.6,3128.5,8.5495]
[1642631934354,0.00113685,3128.6,3128.5,8.4247]
[1642631934552,0.00113685,3128.6,3128.5,8.5503]
[1642631934787,0.20972679,3128.6,3128.5,8.5503]
[1642631934988,0.20972679,3128.6,3128.5,8.5511]
[1642631935393,0.20972679,3128.6,3128.5,8.5519]
[1642631935592,0.20972679,3128.6,3128.5,8.5503]
[1642631935791,0.20972679,3128.6,3128.5,8.5511]
[1642631935992,0.20972679,3128.6,3128.5,8.5559]
[1642631936192,0.20972679,3128.6,3128.5,11.08254045]
[1642631936390,0.1115952,3128.9,3128.6,0.35]
[1642631936593,0.1115952,3128.9,3128.7,0.1278]
[1642631936790,0.00113684,3128.8,3128.7,0.6074]
[1642631936994,0.00113684,3128.8,3128.7,0.4778]
[1642631937192,0.00113684,3128.8,3128.7,0.6058]
[1642631937391,0.00113684,3128.8,3128.7,0.6074]
[1642631937594,0.00113684,3128.8,3128.7,0.6082]
[1642631937796,0.00113684,3128.8,3128.7,0.6098]
[1642631937997,0.00113684,3128.8,3128.7,0.6082]
[1642631938197,0.00113684,3128.8,3128.7,0.6098]
[1642631938639,0.00113684,3128.8,3128.7,3.01505831]
[1642631938839,0.00113684,3128.8,3128.7,3.17249831]
[1642631939041,0.00113684,3128.8,3128.7,3.17649831]
[1642631939245,0.00113684,3128.8,3128.7,3.18799184]
[1642631939446,0.1115952,3128.9,3128.8,0.7]
[1642631939649,1.60791383,3130.1,3128.9,0.35]
[1642631939848,2.7179293,3130.0,3129.2,0.79869]
[1642631940049,3.02475038,3130.0,3129.2,0.79869]
[1642631940248,2.7179293,3129.9,3129.2,0.79869]
[1642631940647,0.30568424,3129.8,3129.2,0.79869]
[1642631940948,0.00511581,3129.7,3129.2,0.79869]
[1642631941248,1.60791383,3130.1,3129.2,0.79869]
[1642631941249,0.00454739,3129.6,3129.3,2.39334372]
[1642631941447,0.00454739,3129.6,3129.3,2.51494372]
[1642631941648,0.00397897,3129.5,3129.3,2.51334372]
[1642631941948,0.00341054,3129.4,3129.3,2.39334372]
[1642631942191,0.00341054,3129.4,3129.2,0.79869]
[1642631942387,0.00341054,3129.4,3129.3,0.47]
[1642631942586,2.71769555,3130.0,3129.3,0.47]
[1642631942894,3.01769555,3130.0,3129.3,0.4692]
[1642631943088,2.72394821,3129.9,3129.3,0.4692]
[1642631943289,0.3,3129.8,3129.3,0.35]
[1642631943489,0.00568424,3129.8,3129.3,0.35]
[1642631943692,2.72298407,3129.7,3129.3,0.35]
[1642631943893,0.00511581,3129.7,3129.3,0.35]
[1642631944093,0.00454739,3129.6,3129.3,0.35]
[1642631944493,0.00397897,3129.5,3129.3,0.47]
[1642631944697,0.00397897,3129.5,3129.3,0.35]
[1642631944895,0.00341054,3129.4,3129.3,0.35]
[1642631947647,0.00341054,3129.4,3129.3,0.4772]
[1642631947850,0.00341054,3129.4,3129.3,0.35]
[1642631948050,0.00341054,3129.4,3129.3,0.478]
[1642631948248,0.00341054,3129.4,3129.3,0.4764]
[1642631948449,0.00341054,3129.4,3129.3,0.35]
[1642631948650,0.00341054,3129.4,3129.3,0.4778]
[1642631948849,2.71774056,3130.0,3129.3,0.4778]
[1642631948850,2.70714765,3130.0,3129.3,0.4778]
[1642631949052,1.90791383,3130.1,3129.3,0.6002]
[1642631949253,1.90791383,3130.1,3129.3,0.35]
[1642631949254,1.90734609,3130.1,3129.3,0.35]
[1642631949451,1.90734609,3130.1,3129.4,0.00284212]
[1642631950286,1.90734609,3130.1,3129.4,0.12204212]
[1642631950487,1.90734609,3130.1,3129.4,0.12284212]
[1642631950686,1.90734609,3130.1,3129.5,0.00227369]
[1642631951789,2.20734609,3130.1,3129.5,0.00227369]
[1642631951991,1.90734609,3130.1,3129.5,0.00227369]
[1642631952191,2.20734609,3130.1,3129.5,0.00227369]
[1642631952399,1.90734609,3130.1,3129.5,0.00227369]
[1642631955034,2.20734609,3130.1,3129.5,0.00227369]
[1642631955433,1.90734609,3130.1,3129.5,0.00227369]
[1642631956035,2.20734609,3130.1,3129.5,0.00227369]
[1642631956235,1.81903226,3130.1,3129.5,0.00227369]
[1642631956435,1.51903226,3130.1,3129.5,0.00227369]
[1642631956638,1.81903226,3130.1,3129.5,0.00227369]
[1642631956838,1.51903226,3130.1,3129.5,0.12227369]
[1642631957035,1.51903226,3130.1,3129.5,0.12307369]
[1642631957289,1.51903226,3130.1,3129.6,0.00170527]
[1642631958584,1.51903226,3130.1,3129.5,0.00227369]
[1642631959687,1.51903226,3130.1,3129.5,0.12227369]
[1642631959888,1.51903226,3130.1,3129.5,0.12387369]
[1642631960087,1.51903226,3130.1,3129.6,0.00170527]
[1642631961338,1.51903226,3130.1,3129.6,0.12950527]
[1642631961639,1.51903226,3130.1,3129.7,0.00113685]
[1642631961838,1.81903226,3130.1,3129.7,0.00113685]
[1642631963641,1.51903226,3130.1,3129.7,0.00113685]
[1642631972585,1.2196,3130.1,3129.7,0.00113685]
[1642631972786,1.5196,3130.1,3129.7,0.00113685]
[1642631973786,1.5196,3130.1,3129.8,0.1277]
[1642631974991,1.5196,3130.1,3129.7,0.00113685]
[1642631975192,1.5196,3130.1,3129.8,0.7985]
[1642631975392,0.3,3130.1,3129.8,0.7985]
[1642631975592,3.6486,3130.2,3129.8,0.7985]
[1642631975593,0.32,3130.2,3129.8,0.7985]
[1642631975793,0.02,3130.2,3129.8,0.7985]
[1642631976044,0.00113685,3130.1,3129.8,0.7985]